bitfinex-derivatives/quotes_SOLF0:USTF0_20251209
["timestamp","ask_amount","ask_price","bid_price","bid_amount"]
[1765248759008,0.05054348,133.03,133.01,63.9]
[1765248759009,3.33054348,133.03,133.01,63.9]
[1765248770729,0.05054348,133.03,133.01,70.6656]
[1765248784744,0.05054348,133.03,133.01,6.7656]
[1765248784944,0.05054348,133.03,133.01,70.6656]
[1765248785952,3.28054348,133.03,133.01,70.6656]
[1765248790146,0.05054348,133.03,133.01,70.6656]
[1765248796855,3.23,133.01,133.0,0.05242013]
[1765248797046,8.9739146,133.01,133.0,0.05242013]
[1765248798144,5.7439146,133.01,133.0,0.05242013]
[1765248798545,9.0539146,133.01,133.0,0.05242013]
[1765248803549,3.31,133.0,132.95,6.7685]
[1765248803950,3.31,132.98,132.95,6.7685]
[1765248804555,3.36669899,132.98,132.95,6.7685]
[1765248805560,0.05669899,132.98,132.96,10.24844277]
[1765248805760,0.05669899,132.98,132.97,63.92]
[1765248822769,0.05669899,132.98,132.97,66.14764672]
[1765248824472,3.31,133.02,132.97,171.42504672]
[1765248824666,3.31,133.02,133.0,2.22764672]
[1765248825465,3.36214757,133.02,133.0,2.27956235]
[1765248825875,3.36214757,133.02,133.0,0.05191563]
[1765248830178,8.84304516,133.01,133.0,0.05191563]
[1765248832982,3.12,133.0,132.96,6.768]
[1765248833285,3.12,132.98,132.96,8.99564672]
[1765248833882,3.12,132.98,132.95,63.92]
[1765248834088,3.16827071,132.98,132.95,63.92]
[1765248839488,8.85142262,132.97,132.95,63.92]
[1765248839789,3.12,132.97,132.95,63.92]
[1765248843788,3.12,132.95,132.92,8.99764672]
[1765248843987,3.17015282,132.95,132.92,8.99764672]
[1765248844190,3.17015282,132.95,132.92,6.77]
[1765248844383,3.17015282,132.95,132.91,66.16764672]
[1765248845384,3.17015282,132.95,132.91,2.22764672]
[1765248845585,3.12,132.93,132.91,2.22764672]
[1765248848998,3.32,132.94,132.91,8.99834672]
[1765248849293,3.37015282,132.95,132.91,8.99834672]
[1765248849694,0.05015282,132.95,132.93,2.22764672]
[1765248850496,0.05015282,132.95,132.93,8.99734672]
[1765248851490,0.05015282,132.95,132.93,127.99734672]
[1765248855187,3.32,133.0,132.96,6.7681]
[1765248855391,3.32,133.0,132.98,2.22764672]
[1765248856300,3.3733318,133.0,132.98,2.27660488]
[1765248858800,0.0533318,133.0,132.98,9.04370488]
[1765248859797,0.0533318,133.0,132.98,72.98370488]
[1765248871607,3.1633318,133.0,132.98,9.04370488]
[1765248871813,3.1633318,133.0,132.98,72.96370488]
[1765248873413,3.1633318,133.0,132.98,63.96895816]
[1765248874715,3.1633318,133.0,132.98,0.04895816]
[1765248884031,3.1633318,133.0,132.94,8.99674672]
[1765248884236,3.1633318,133.0,132.94,6.7691]
[1765248884237,3.11,132.98,132.94,6.7691]
[1765248885039,3.11,132.98,132.92,70.6902]
[1765248885643,3.11,132.95,132.92,70.6902]
[1765248889153,3.11,132.95,132.92,6.7702]
[1765248893749,3.11,132.95,132.91,63.94]
[1765248894058,3.28,132.93,132.87,63.94]
[1765248894355,3.32798088,132.91,132.87,63.94]
[1765248896354,3.28,132.9,132.85,4.02212781]
[1765248896562,3.28,132.9,132.86,3.48399201]
[1765248896860,0.04798088,132.91,132.86,3.48399201]
[1765248897050,3.32798088,132.91,132.86,3.48399201]
[1765248898054,3.32798088,132.91,132.87,63.94]
[1765248898748,3.32798088,132.91,132.85,4.02212781]
[1765248899555,3.28,132.9,132.85,4.02212781]
[1765248900352,3.28,132.89,132.85,4.02212781]
[1765248900654,3.28,132.87,132.85,4.02212781]
[1765248901457,3.28,132.86,132.85,4.02212781]
[1765248903053,3.34,132.87,132.85,4.02212781]
[1765248905163,3.34,132.86,132.85,4.02212781]
[1765248906263,6.7732,132.87,132.85,4.02212781]
[1765248906264,3.34,132.87,132.85,4.02212781]
[1765248911565,3.39458642,132.88,132.85,4.02212781]
[1765248912972,0.05458642,132.88,132.85,4.02212781]
[1765248913361,3.39458642,132.88,132.85,4.02212781]
[1765248913776,5.67198537,132.92,132.87,108.84129201]
[1765248914070,3.34,132.93,132.86,64.0]
[1765248914574,3.34,132.93,132.85,78.28001982]
[1765248914872,3.38741885,132.9,132.88,0.05266303]
[1765248915273,0.04741885,132.9,132.88,0.05266303]
[1765248915568,3.38741885,132.9,132.88,0.05266303]
[1765248916673,0.04741885,132.9,132.88,0.05266303]
[1765248916871,3.38741885,132.9,132.88,0.05266303]
[1765248917667,0.04741885,132.9,132.88,0.05266303]
[1765248920660,0.04741885,132.9,132.88,6.82476303]
[1765248921668,0.04741885,132.9,132.88,70.80476303]
[1765248921968,3.38,132.96,132.89,6.7716]
[1765248922164,3.38,132.96,132.89,112.1129]
[1765248922867,0.05257917,132.94,132.91,0.04901175]
[1765248923066,3.43257917,132.94,132.91,0.04901175]
[1765248925269,3.43257917,132.94,132.91,6.81961175]
[1765248931781,0.05257917,132.94,132.91,6.81961175]
[1765248932373,3.43257917,132.94,132.91,6.81961175]
[1765248934180,3.43257917,132.94,132.91,0.04901175]
[1765248942688,3.38,132.93,132.91,0.04901175]
[1765248953194,8.85613018,132.92,132.91,0.04901175]
[1765248969921,3.11,132.91,132.85,123.02212781]
[1765248970111,3.11,132.89,132.85,4.02212781]
[1765248970313,3.11,132.87,132.85,4.02212781]
[1765248971016,3.16718142,132.87,132.85,4.07876545]
[1765248971521,3.16718142,132.87,132.85,10.85236545]
[1765248973116,3.16718142,132.87,132.85,4.07876545]
[1765248975024,0.05718142,132.87,132.85,6.30999262]
[1765248976117,3.16718142,132.87,132.85,6.30999262]
[1765248976318,3.16718142,132.87,132.85,4.07876545]
[1765248984118,0.05718142,132.87,132.85,4.07876545]
[1765248986231,0.05718142,132.87,132.85,6.30999262]
[1765248988235,3.26718142,132.87,132.85,4.07876545]
[1765249005940,0.05718142,132.87,132.85,4.07876545]
[1765249006342,3.26718142,132.87,132.85,4.07876545]
[1765249009750,8.77256058,132.86,132.85,4.07876545]
[1765249010850,8.77256058,132.86,132.85,3.91082892]
[1765249011059,8.77256058,132.86,132.85,0.05663764]
[1765249011264,3.07,132.85,132.8,6.7764]
[1765249011552,3.07,132.83,132.8,6.7764]
[1765249012243,3.12044529,132.83,132.8,6.7764]
[1765249014341,0.05044529,132.83,132.81,6.7758]
[1765249014946,0.05044529,132.83,132.82,3.48888874]
[1765249015242,3.07,132.88,132.83,6.7749]
[1765249015448,8.77510459,132.87,132.83,6.7749]
[1765249015754,5.70499672,132.86,132.83,6.7749]
[1765249016053,0.05680873,132.86,132.83,6.82657879]
[1765249021456,3.12680873,132.86,132.83,0.05167879]
[1765249021657,3.07,132.84,132.83,0.05167879]
[1765249022555,3.12680873,132.86,132.83,0.05167879]
[1765249022755,8.77641793,132.85,132.83,0.05167879]
[1765249022957,3.07,132.85,132.83,0.05167879]
[1765249028666,9.10916057,132.84,132.83,0.05167879]
[1765249048896,3.19,132.83,132.77,6.7778]
[1765249049490,3.19,132.83,132.78,6.7774]
[1765249049886,3.19,132.81,132.78,6.7774]
[1765249053090,3.2474447,132.82,132.78,6.7774]
[1765249055604,3.2474447,132.82,132.79,6.7769]
[1765249057202,3.2474447,132.82,132.8,6.7764]
[1765249058701,0.0574447,132.82,132.8,6.7764]
[1765249059001,0.0574447,132.82,132.8,10.26528874]
[1765249059198,0.0574447,132.82,132.8,129.26528874]
[1765249059401,0.0574447,132.82,132.8,193.28528874]
[1765249060208,0.0574447,132.82,132.8,74.28528874]
[1765249061000,3.19,132.86,132.82,6.7752]
[1765249061201,5.72384714,132.85,132.82,10.26408874]
[1765249061404,3.19,132.86,132.82,10.26408874]
[1765249061597,5.72469022,132.85,132.82,10.26408874]
[1765249061898,0.0502026,132.85,132.82,10.3143109]
[1765249062099,3.2402026,132.85,132.82,10.3143109]
[1765249066712,3.2402026,132.85,132.83,2.23292371]
[1765249067006,3.2402026,132.85,132.82,6.82542216]
[1765249067405,5.72863021,132.84,132.82,6.82542216]
[1765249067608,3.2402026,132.85,132.82,9.05834587]
[1765249067808,5.72863021,132.84,132.82,9.05834587]
[1765249068011,3.2402026,132.85,132.82,9.05834587]
[1765249068205,3.2402026,132.85,132.82,2.28314587]
[1765249068407,8.92876752,132.84,132.82,2.28314587]
[1765249068603,3.2,132.84,132.82,2.28314587]
[1765249072316,3.2502026,132.85,132.82,2.28314587]
[1765249072505,8.92926538,132.84,132.82,2.28314587]
[1765249072707,3.2,132.84,132.82,2.28314587]
[1765249073509,3.2502026,132.85,132.82,9.05844587]
[1765249074020,3.2502026,132.85,132.82,6.82552216]
[1765249074218,3.2502026,132.85,132.82,9.05844587]
[1765249074516,8.92897253,132.84,132.82,9.05844587]
[1765249074719,3.2,132.84,132.82,9.05844587]
[1765249076413,3.2,132.84,132.82,73.05844587]
[1765249078017,3.2,132.84,132.82,70.82552216]
[1765249078217,3.2,132.84,132.82,73.05844587]
[1765249078921,3.2502026,132.85,132.82,73.05844587]
[1765249079218,0.0502026,132.85,132.82,73.05844587]
[1765249079614,3.2502026,132.85,132.82,73.05844587]
[1765249084724,3.2502026,132.85,132.82,70.82552216]
[1765249084914,3.2502026,132.85,132.82,73.05844587]
[1765249085417,3.2502026,132.85,132.83,6.7748]
[1765249087423,3.2502026,132.85,132.82,66.28314587]
[1765249087628,3.2502026,132.85,132.82,64.05022216]
[1765249089127,3.2502026,132.85,132.82,0.05022216]
[1765249091830,3.2502026,132.85,132.82,2.28314587]
[1765249093527,3.33,132.84,132.82,2.28314587]
[1765249094530,3.33,132.84,132.82,0.05022216]
[1765249099934,3.33,132.84,132.82,6.82562216]
[1765249102628,3.33,132.84,132.82,0.05022216]
[1765249102834,3.4102026,132.85,132.82,2.28314587]
[1765249103034,5.7441436,132.84,132.82,2.28314587]
[1765249103234,3.4102026,132.85,132.82,2.28314587]
[1765249103435,5.74598487,132.84,132.82,2.28314587]
[1765249103637,3.4102026,132.85,132.82,2.28314587]
[1765249103834,5.74579766,132.84,132.82,2.28314587]
[1765249104134,3.4102026,132.85,132.82,2.28314587]
[1765249104332,5.74688704,132.84,132.82,2.28314587]
[1765249104635,3.4102026,132.85,132.83,6.7748]
[1765249104835,5.7469406,132.84,132.83,6.7748]
[1765249105232,3.36,132.83,132.82,0.05022216]
[1765249105433,9.1069406,132.83,132.82,0.05022216]
[1765249108242,6.94641335,132.87,132.83,105.3892]
[1765249108433,3.36,132.88,132.85,2.23292371]
[1765249108736,3.36,132.88,132.84,64.0]
[1765249108935,3.36,132.88,132.85,2.23292371]
[1765249109135,3.36,132.89,132.85,9.00662371]
[1765249109332,3.36,132.89,132.86,0.05556694]
[1765249109333,0.05519349,132.88,132.86,0.05556694]
[1765249109531,0.05519349,132.88,132.87,2.23292371]
[1765249109842,0.05519349,132.88,132.86,0.05556694]
[1765249110041,0.05519349,132.88,132.87,2.23292371]
[1765249110042,3.41519349,132.88,132.87,2.23292371]
[1765249110942,3.41519349,132.88,132.86,0.05556694]
[1765249111838,3.36,132.87,132.81,6.7758]
[1765249112039,3.36,132.87,132.83,64.0]
[1765249112940,3.36,132.85,132.84,0.05632823]
[1765249120144,3.36,132.85,132.84,2.28925194]
[1765249123347,9.01461445,132.85,132.84,0.05632823]
[1765249123547,3.36,132.84,132.82,2.23292371]
[1765249124949,3.36,132.84,132.8,192.00912371]
[1765249125154,3.36,132.82,132.8,73.00912371]
[1765249126651,3.36,132.82,132.8,70.7762]
[1765249129950,3.36,132.82,132.77,119.0]
[1765249130151,3.36,132.82,132.77,183.0]
[1765249130359,3.36,132.82,132.77,119.0]
[1765249131952,3.36,132.82,132.77,122.49022503]
[1765249133660,3.36,132.82,132.77,3.49022503]
[1765249141155,3.21440583,132.83,132.79,3.49022503]
[1765249141960,3.21440583,132.83,132.79,10.26702503]
[1765249144272,3.21440583,132.83,132.79,6.7768]
[1765249147773,3.21440583,132.83,132.78,183.02]
[1765249148272,3.18,132.81,132.78,183.02]
[1765249149973,3.18,132.81,132.75,125.7788]
[1765249150181,0.0542571,132.79,132.77,3.49022503]
[1765249151174,0.0542571,132.79,132.77,10.26802503]
[1765249151481,0.0542571,132.79,132.77,129.26802503]
[1765249151979,0.0542571,132.79,132.77,125.7778]
[1765249157487,3.2342571,132.79,132.77,6.7778]
[1765249159398,3.2342571,132.79,132.76,119.0]
[1765249163395,3.2342571,132.79,132.74,64.02]
[1765249167402,3.2342571,132.79,132.73,189.7998]
[1765249167889,3.2342571,132.79,132.73,125.7798]
[1765249168086,3.2342571,132.79,132.73,189.7998]
[1765249168290,5.75437505,132.78,132.73,189.7998]
[1765249168497,3.32,132.77,132.73,189.7998]
[1765249168697,0.04776134,132.76,132.73,189.7998]
[1765249169990,0.04776134,132.76,132.73,70.8198]
[1765249171396,3.36776134,132.76,132.73,64.04]
[1765249172395,3.36776134,132.76,132.72,64.04]
[1765249173495,3.36776134,132.76,132.72,70.8204]
[1765249182009,0.04776134,132.76,132.72,70.8204]
[1765249182306,3.36776134,132.76,132.72,70.8204]
[1765249184102,3.36776134,132.76,132.72,6.7804]
[1765249184305,3.32,132.74,132.7,67.53022503]
[1765249184603,0.0512088,132.73,132.7,67.53022503]
[1765249185608,0.0512088,132.73,132.71,6.781]
[1765249186809,0.0512088,132.73,132.71,9.01793608]
[1765249188210,3.3712088,132.73,132.71,6.781]
[1765249188412,3.3712088,132.73,132.71,9.01793608]
[1765249188614,3.3712088,132.73,132.71,6.781]
[1765249188916,3.3712088,132.73,132.69,6.7818]
[1765249193223,0.0512088,132.73,132.7,9.01833608]
[1765249193420,0.0512088,132.73,132.72,2.23693608]
[1765249197220,0.0512088,132.73,132.71,6.7809]
[1765249197522,0.0512088,132.73,132.72,2.23693608]
[1765249200422,0.0512088,132.73,132.72,121.23693608]
[1765249200621,3.3,132.79,132.72,121.23693608]
[1765249200830,5.75475794,132.78,132.75,2.23693608]
[1765249201127,3.3,132.8,132.77,2.23693608]
[1765249201424,3.3,132.82,132.79,2.23693608]
[1765249201624,5.75667324,132.81,132.77,64.06]
[1765249201829,3.35661331,132.82,132.79,2.29171523]
[1765249202024,5.75719712,132.81,132.79,2.29171523]
[1765249202330,3.35661331,132.82,132.79,2.29171523]
[1765249202520,5.75731986,132.81,132.79,2.29171523]
[1765249202725,0.05661331,132.82,132.79,2.29171523]
[1765249202921,0.05661331,132.82,132.81,2.23693608]
[1765249203230,9.11445226,132.82,132.79,2.29171523]
[1765249203426,3.3,132.81,132.79,2.29171523]
[1765249203631,3.3,132.81,132.79,0.05477915]
[1765249204034,3.3,132.81,132.74,6.7793]
[1765249204035,3.3,132.79,132.74,2.23693608]
[1765249204926,3.34739912,132.78,132.74,2.23693608]
[1765249205829,3.34739912,132.78,132.73,64.06]
[1765249206029,3.34739912,132.78,132.73,66.27693608]
[1765249206224,3.34739912,132.78,132.73,2.23693608]
[1765249206422,3.3,132.76,132.73,2.23693608]
[1765249207335,3.3,132.76,132.72,6.7803]
[1765249207525,0.05146896,132.75,132.72,6.7803]
[1765249207725,0.05146896,132.75,132.74,2.23693608]
[1765249210225,0.05146896,132.75,132.73,6.7799]
[1765249210529,0.05146896,132.75,132.73,9.01683608]
[1765249210833,0.05146896,132.75,132.73,6.7799]
[1765249211027,0.05146896,132.75,132.73,9.01683608]
[1765249213931,3.22146896,132.75,132.73,2.23693608]
[1765249214834,0.05146896,132.75,132.73,2.23693608]
[1765249215825,3.22146896,132.75,132.72,6.7805]
[1765249216030,3.22146896,132.75,132.72,2.23693608]
[1765249216233,3.22146896,132.75,132.71,119.0]
[1765249216525,3.22146896,132.75,132.72,2.23693608]
[1765249218341,3.22146896,132.75,132.7,70.8213]
[1765249218538,3.22146896,132.75,132.73,2.23693608]
[1765249218740,0.05146896,132.75,132.73,2.23693608]
[1765249219238,3.25146896,132.75,132.71,119.0]
[1765249219441,0.05146896,132.75,132.73,2.23693608]
[1765249220549,0.05146896,132.75,132.73,9.01683608]
[1765249220741,0.05146896,132.75,132.73,73.05683608]
[1765249223649,0.05146896,132.75,132.73,70.8199]
[1765249223847,0.05146896,132.75,132.73,73.05683608]
[1765249225146,8.94485959,132.79,132.74,6.7791]
[1765249225350,5.74485959,132.78,132.76,2.23693608]
[1765249225546,3.2,132.79,132.76,2.23693608]
[1765249226053,3.25751531,132.79,132.76,2.29027914]
[1765249226642,3.25751531,132.79,132.76,0.05334306]
[1765249228055,0.05751531,132.79,132.76,0.05334306]
[1765249229453,3.25751531,132.79,132.76,0.05334306]
[1765249229754,0.05751531,132.79,132.76,0.05334306]
[1765249230856,0.05751531,132.79,132.77,2.23693608]
[1765249231855,0.05751531,132.79,132.77,73.05483608]
[1765249236153,0.05751531,132.79,132.78,2.23693608]
[1765249239064,0.05751531,132.79,132.77,189.8179]
[1765249239260,0.05751531,132.79,132.78,2.23693608]
[1765249247373,0.05751531,132.79,132.77,189.8179]
[1765249247571,0.05751531,132.79,132.78,2.23693608]
[1765249247865,0.05751531,132.79,132.77,189.8179]
[1765249248070,0.05751531,132.79,132.78,2.23693608]
[1765249248665,0.05751531,132.79,132.77,189.8179]
[1765249248861,3.15,132.83,132.78,3.49137726]
[1765249249258,73.964,132.85,132.78,3.49137726]
[1765249249466,5.77122296,132.84,132.78,3.49137726]
[1765249249664,5.77122296,132.83,132.78,3.49137726]
[1765249249861,3.15,132.84,132.78,3.49137726]
[1765249250067,0.05118261,132.82,132.79,0.04989334]
[1765249250366,0.05118261,132.82,132.8,70.7964]
[1765249255270,0.05118261,132.82,132.8,6.7764]
[1765249255469,0.05118261,132.82,132.8,70.7964]
[1765249256974,0.05118261,132.82,132.8,189.7964]
[1765249259882,0.05118261,132.82,132.81,64.02]
[1765249260669,3.20118261,132.82,132.79,119.04989334]
[1765249260884,3.20118261,132.82,132.79,0.04989334]
[1765249261773,3.20118261,132.82,132.79,6.82679334]
[1765249263878,3.20118261,132.82,132.79,0.04989334]
[1765249264078,3.15,132.8,132.79,0.04989334]
[1765249264578,8.9168382,132.8,132.79,0.04989334]
[1765249266972,5.7668382,132.8,132.79,0.04989334]
[1765249267186,0.05118261,132.82,132.79,0.04989334]
[1765249267381,0.05118261,132.82,132.79,108.9618706]
[1765249267576,0.05118261,132.82,132.81,3.49137726]
[1765249268176,0.05118261,132.82,132.8,6.7762]
[1765249269879,0.05118261,132.82,132.81,64.02]
[1765249271086,0.05118261,132.82,132.81,67.51137726]
[1765249272287,0.05118261,132.82,132.81,64.02]
[1765249276188,3.15,132.86,132.81,169.4191]
[1765249276389,5.7886748,132.85,132.82,3.49137726]
[1765249276592,3.15,132.86,132.82,3.49137726]
[1765249276885,3.27,132.84,132.81,125.7758]
[1765249277083,3.27,132.84,132.81,189.7958]
[1765249277280,3.32509996,132.84,132.81,189.84440186]
[1765249278991,0.05509996,132.84,132.81,189.84440186]
[1765249279385,0.05509996,132.84,132.82,64.02]
[1765249279585,0.05509996,132.84,132.82,70.7953]
[1765249279785,3.10509996,132.84,132.82,70.7953]
[1765249280487,3.10509996,132.84,132.82,6.7753]
[1765249280687,3.10509996,132.84,132.82,70.7953]
[1765249280888,3.10509996,132.84,132.82,64.02]
[1765249283401,0.05509996,132.84,132.82,64.02]
[1765249283585,0.05509996,132.84,132.82,70.7951]
[1765249284092,3.10509996,132.84,132.82,70.7751]
[1765249284289,6.97192178,132.88,132.82,64.0]
[1765249284490,77.91096017,132.91,132.82,64.0]
[1765249284491,6.97192178,132.89,132.87,3.49137726]
[1765249284794,3.05,132.92,132.87,30.42]
[1765249285095,8.84017,132.91,132.87,30.42]
[1765249285287,3.05,132.91,132.87,30.42]
[1765249285490,0.05247558,132.9,132.88,0.05613135]
[1765249286588,3.10247558,132.9,132.88,0.05613135]
[1765249287693,3.05,132.88,132.85,64.0]
[1765249288692,3.05,132.88,132.85,0.05458779]
[1765249291194,3.05,132.86,132.85,0.05458779]
[1765249291395,3.05,132.85,132.81,70.7758]
[1765249291899,3.05,132.85,132.82,6.7752]
[1765249292289,3.05,132.85,132.82,6.83232002]
[1765249292596,3.10748076,132.85,132.82,6.83232002]
[1765249294001,3.10748076,132.85,132.82,0.05712002]
[1765249299102,0.05748076,132.85,132.82,3.54849728]
[1765249299503,0.05748076,132.85,132.84,3.49137726]
[1765249300294,0.05748076,132.85,132.84,67.49137726]
[1765249302104,3.05,132.88,132.85,6.7739]
[1765249303307,3.09778813,132.88,132.85,6.83143759]
[1765249303706,0.04778813,132.88,132.85,6.83143759]
[1765249304600,3.09778813,132.88,132.85,6.83143759]
[1765249310108,0.04778813,132.88,132.86,6.7731]
[1765249310706,0.04778813,132.88,132.86,9.00491291]
[1765249311806,0.04778813,132.88,132.87,64.0]
[1765249312309,3.37,132.92,132.87,64.0]
[1765249312505,3.37,132.92,132.89,2.23181291]
[1765249313212,3.42449552,132.92,132.89,2.28771316]
[1765249313611,3.42449552,132.92,132.89,9.05951316]
[1765249320218,0.05449552,132.92,132.91,2.23181291]
[1765249320815,0.05449552,132.92,132.91,66.21181291]
[1765249321921,3.37,132.97,132.92,6.7702]
[1765249322122,3.37,132.97,132.93,2.23181291]
[1765249322627,3.37,132.97,132.93,9.00151291]
[1765249323017,3.42267606,132.96,132.94,0.05211481]
[1765249323818,0.05267606,132.96,132.94,0.05211481]
[1765249324019,0.05267606,132.96,132.95,2.23181291]
[1765249327314,3.37,132.98,132.95,2.23181291]
[1765249327511,3.37,132.98,132.97,2.23181291]
[1765249329329,0.0507673,132.99,132.97,2.23181291]
[1765249329627,0.0507673,132.99,132.97,2.28370165]
[1765249332528,0.0507673,132.99,132.97,9.05140165]
[1765249333028,0.0507673,132.99,132.98,2.23181291]
[1765249335231,3.18,133.02,132.98,8.99901291]
[1765249335428,3.18,133.04,133.0,2.23181291]
[1765249335629,3.18,133.05,133.01,2.23181291]
[1765249336129,3.18,133.03,133.02,0.05711698]
[1765249337130,0.05315948,133.04,133.02,0.05711698]
[1765249337430,0.05315948,133.04,133.03,2.23181291]
[1765249337624,3.18,133.08,133.03,2.23181291]
[1765249337828,3.18,133.08,133.06,2.23181291]
[1765249338632,3.23027089,133.08,133.06,2.28056033]
[1765249338837,0.05027089,133.08,133.06,2.28056033]
[1765249339926,3.23027089,133.08,133.06,2.28056033]
[1765249340930,3.23027089,133.08,133.06,0.04874742]
[1765249340931,5.4620838,133.08,133.06,0.04874742]
[1765249341125,5.41181291,133.07,133.01,2.23181291]
[1765249341324,3.18,133.06,133.01,2.23181291]
[1765249342036,3.23262577,133.05,133.02,0.05571938]
[1765249344142,0.05262577,133.05,133.02,0.05571938]
[1765249344338,3.23262577,133.05,133.02,2.28753229]
[1765249345225,3.23262577,133.05,133.02,0.05571938]
[1765249345842,3.23262577,133.05,133.02,2.28753229]
[1765249346236,0.05262577,133.05,133.02,2.28753229]
[1765249347141,3.23262577,133.05,133.02,2.28753229]
[1765249351256,3.23262577,133.05,133.02,0.05571938]
[1765249351944,3.18,133.04,133.02,0.05571938]
[1765249355647,9.04833868,133.05,132.98,182.92]
[1765249355648,5.41181291,133.03,132.98,119.0]
[1765249355854,3.18,133.02,132.97,8.99941291]
[1765249356866,3.18,133.0,132.98,0.05326159]
[1765249358451,3.23113925,133.01,132.98,0.05326159]
[1765249371072,3.32,133.0,132.98,0.05326159]
[1765249371267,3.32,133.0,132.95,121.23181291]
[1765249371577,3.32,133.0,132.95,2.23181291]
[1765249372074,3.32,132.99,132.95,2.23181291]
[1765249372264,3.32,132.97,132.96,0.0486749]
[1765249382585,3.32,132.97,132.92,3.48289354]
[1765249382789,3.32,132.97,132.9,129.25409354]
[1765249383576,3.06,132.94,132.92,0.05002472]
[1765249385382,9.8295,132.94,132.92,0.05002472]
[1765249385581,3.06,132.93,132.92,0.05002472]
[1765249413310,3.17,132.91,132.86,6.7731]
[1765249414310,3.17,132.89,132.87,0.05248173]
[1765249423723,3.17,132.89,132.87,0.00248173]
[1765249424524,3.17,132.88,132.87,0.00248173]
[1765249425424,3.17,132.88,132.82,6.7752]
[1765249425824,3.17,132.87,132.81,119.0]
[1765249426130,3.17,132.87,132.81,122.48289354]
[1765249426619,3.17,132.84,132.83,0.05669922]
[1765249429326,0.05228578,132.85,132.83,5.03959276]
[1765249429623,0.05228578,132.85,132.83,3.53959276]
[1765249430623,3.1,132.9,132.83,122.53959276]
[1765249430829,3.1,132.9,132.85,3.48289354]
[1765249431130,3.1,132.9,132.86,6.7733]
[1765249431629,0.0491096,132.89,132.87,0.04898167]
[1765249431825,3.1491096,132.89,132.87,0.04898167]
[1765249432731,3.1491096,132.89,132.88,2.23137955]
[1765249432929,3.1491096,132.89,132.87,0.04898167]
[1765249433135,3.1491096,132.89,132.87,2.28036122]
[1765249433443,0.0491096,132.89,132.87,9.05306122]
[1765249433833,0.0491096,132.89,132.87,6.82168167]
[1765249434042,0.0491096,132.89,132.88,2.23137955]
[1765249434538,3.1491096,132.89,132.87,0.04898167]
[1765249436237,3.1,132.87,132.81,2.23137955]
[1765249437335,3.1,132.84,132.83,0.05219677]
[1765249439337,3.1511753,132.85,132.83,0.05219677]
[1765249440640,3.1511753,132.85,132.83,2.28357632]
[1765249441432,0.0511753,132.85,132.83,66.26357632]
[1765249442439,0.0511753,132.85,132.83,73.03827632]
[1765249443841,0.0511753,132.85,132.83,9.05827632]
[1765249444143,0.0511753,132.85,132.83,73.03827632]
[1765249447337,3.09,132.91,132.83,226.67167632]
[1765249447543,3.09,132.91,132.87,2.23137955]
[1765249447843,3.09,132.91,132.87,66.23137955]
[1765249448243,3.09,132.89,132.88,0.04822569]
[1765249450640,3.14647556,132.9,132.88,0.04822569]
[1765249450841,3.14647556,132.9,132.89,2.23137955]
[1765249451243,0.05647556,132.9,132.89,2.23137955]
[1765249453348,3.09,132.94,132.89,107.57027955]
[1765249453550,3.09,132.98,132.93,2.23137955]
[1765249453752,8.76387894,132.97,132.93,2.23137955]
[1765249453941,3.09,132.97,132.95,2.23137955]
[1765249454453,3.14525838,132.97,132.95,2.28653265]
[1765249454647,0.05525838,132.97,132.95,2.28653265]
[1765249455046,0.05525838,132.97,132.95,66.26653265]
[1765249456246,0.05525838,132.97,132.95,73.03513265]
[1765249456554,8.7523531,133.02,132.95,171.55963265]
[1765249456848,3.09,133.02,132.98,2.23137955]
[1765249457443,3.09,133.02,132.99,0.05325248]
[1765249457444,0.05211798,133.01,132.99,0.05325248]
[1765249458443,0.05211798,133.01,133.0,2.23137955]
[1765249458846,3.31211798,133.01,133.0,2.23137955]
[1765249460854,0.05211798,133.01,133.0,2.23137955]
[1765249465448,3.31211798,133.01,133.0,2.23137955]
[1765249466352,0.05211798,133.01,133.0,2.23137955]
[1765249467152,3.31211798,133.01,133.0,2.23137955]
[1765249467651,3.31211798,133.01,132.99,66.24463203]
[1765249468955,0.05211798,133.01,132.99,66.24463203]
[1765249470058,0.05211798,133.01,132.99,2.28463203]
[1765249470258,0.05211798,133.01,133.0,63.94]
[1765249471660,3.26,133.07,133.0,63.94]